Workbook

Sheet Instructions
B4: Setup Data
B5: Parameter | C5: Value | E5: Instructions | G5: Interpolate Methods
B6: Calendar | C6: SWE | E6: Input | G6: Linear on discount factors
B7: Days per Year | C7: 360/365 | E7: Headings | G7: Clamped Cubic
B8: Days per Month | C8: Act | E8: Calculated Value | G8: Monotonic Preserving Cubic
B9: Interpolation | C9: Linear/Cubic | E9: Intrapolation Value | G9: Monotonic Cubic on Log.zero rates
B10: Discounting | C10: Continuous | E10: Generatot
B11: Spot Days | C11: 2 | E11: Deposits
B12: ForwardCalc | C12: Continuous | E12: FRA:s
B13: Debug | C13: FALSE | E13: Swaps
B14: Start day | C14: 2012-04-03
G25: By JING LI & SIMEI DENG

Sheet Bootstrapping
B4: Deposit | E4: Short Fut | H4: Swap | R4: Swaps
B5: Cash | E5: OMX STIBOR FRA 3M | H5: SEK STIBOR A 3M | R5: Interpolate data
B6: Maturity | C6: Bid | D6: Ask | E6: Maturity | F6: Bid | G6: Ask | H6: Maturity | I6: Bid | J6: Ask | R6: Maturity(T) | S6: Zerorate | T6: Log-Discounts | U6: Log-Zerorate
B7: O/N | C7: 1.4 | D7: 1.6 | E7: jun-12 | F7: 2.12 | G7: 2.14 | H7: 4Y | I7: 2.2625 | J7: 2.3125 | R7: =D42 -> 2016-04-05 | S7: =S42 -> 2.262999983 | T7: =LN(R42) -> -0.09070599933 | U7: 0.8166913593
B8: T/N | C8: 1.628 | D8: 1.628 | E8: =NextIMMDate(E7) -> sep-12 | F8: 2.0075 | G8: 2.0275 | H8: 5Y | I8: 2.35 | J8: 2.4 | R8: 2017-04-05 | S8: 2.355171248 | T8: -0.1179521381 | U8: 0.8566134415
B9: 1W | C9: 1.745 | D9: 1.745 | E9: =NextIMMDate(E8) -> dec-12 | F9: 2.01125 | G9: 2.03125 | H9: 6Y | I9: 2.435 | J9: 2.485 | R9: 2018-04-05 | S9: 2.442345604 | T9: -0.146741477 | U9: 0.8929588907
B10: 1M | C10: 1.99 | D10: 1.99 | E10: =NextIMMDate(E9) -> mar-13 | F10: 2.035 | G10: 2.055 | H10: 7Y | I10: 2.505 | J10: 2.555 | R10: 2019-04-05 | S10: 2.514640029 | T10: -0.1762314847 | U10: 0.9221296635
B11: 2M | C11: 2.1 | D11: 2.1 | E11: jun-13 | F11: 2.0575 | G11: 2.0875 | H11: 8Y | I11: 2.5575 | J11: 2.6075 | R11: 2020-04-06 | S11: 2.567272966 | T11: -0.2057335185 | U11: 0.9428442329
B12: 3M | C12: 2.255 | D12: 2.255 | E12: sep-13 | F12: 2.09875 | G12: 2.12875 | H12: 9Y | I12: 2.5975 | J12: 2.6475 | R12: 2021-04-06 | S12: 2.60895356 | T12: -0.2351632113 | U12: 0.9589492059
E13: dec-13 | F13: 2.14375 | G13: 2.17375 | H13: 10Y | I13: 2.635 | J13: 2.685 | R13: 2022-04-05 | S13: 2.649218542 | T13: -0.2652121795 | U13: 0.9742647068
E14: mar-14 | F14: 2.19875 | G14: 2.22875 | H14: 12Y | I14: 2.69 | J14: 2.75 | R14: =D50 -> 2024-04-05 | S14: =S50 -> 2.712418415 | T14: =LN(R50) -> -0.3258617739 | U14: =LN(S50) -> 0.9978406408 | X14: Year | Y14: Maturity | Z14: T | AA14: DF | AB14: Zero Rate
E15: jun-14 | F15: 2.248333 | G15: 2.288333 | H15: 15Y | I15: 2.755 | J15: 2.815 | R15: =D53 -> 2027-04-05 | S15: =S53 -> 2.782942291 | T15: =LN(R53) -> -0.4178225686 | U15: =LN(S53) -> 1.023508746 | X15: 1 | Y15: =AddYears($B$26,X15) -> 2013-04-05 | Z15: =DAYS360(B26,Y15,0)/360 -> 1 | AA15: =EXP(-(AB15/100)*(Y15-$B$24)/365) -> 0.979087105 | AB15: =IPOLr(Y15,$D$24:$D$41,$P$24:$P$41,0) -> 2.101949163
E16: sep-14 | F16: 2.306667 | G16: 2.346667 | H16: 20Y | I16: 2.725 | J16: 2.805 | R16: =D58 -> 2032-04-05 | S16: =S58 -> 2.749638812 | T16: =LN(R58) -> -0.5504550904 | U16: =LN(S58) -> 1.011469562 | X16: 2 | Y16: =AddYears($B$26,X16) -> 2014-04-07 | Z16: =DAYS360(Y15,Y16,0)/360 -> 1.005555556 | AA16: =EXP(-(AB16/100)*(Y16-$B$24)/365) -> 0.9583552307 | AB16: =IPOLr(Y16,$D$24:$D$41,$P$24:$P$41,0) -> 2.115247862
E17: dec-14 | F17: 2.361667 | G17: 2.401667 | H17: 25Y | I17: 2.675 | J17: 2.755 | R17: =D63 -> 2037-04-07 | S17: =S63 -> 2.679654503 | T17: =LN(R63) -> -0.6706477776 | U17: =LN(S63) -> 0.9856878694 | X17: 3 | Y17: =AddYears($B$26,X17) -> 2015-04-07 | Z17: =DAYS360(Y16,Y17,0)/360 -> 1 | AA17: =EXP(-(AB17/100)*(Y17-$B$24)/365) -> 0.9362414795 | AB17: =IPOLr(Y17,$D$24:$D$41,$P$24:$P$41,0) -> 2.188068553
E18: mar-15 | F18: 2.416667 | G18: 2.456667 | H18: 30Y | I18: 2.625 | J18: 2.725 | R18: =D68 -> 2042-04-08 | S18: =S68 -> 2.624022464 | T18: =LN(R68) -> -0.7880694314 | U18: =LN(S68) -> 0.9647084318 | Y18: Sum DF | AA18: =AA17*Z17+AA16*Z16+AA15*Z15 -> 2.879008011
B23: Start date | C23: Generator | D23: Maturity | F23: Quote | G23: Quotes | J23: Days | K23: t | L23: t(365) | M23: t cpn | N23: T(form 0) | O23: DF(linear) | P23: Zero(linear) | Q23: Forw(linear) | R23: DF(cubic) | S23: Zero(cubic) | T23: Forw(cubic) | U23: DF(monot) | V23: Zero(monot) | W23: Forw(monot) | X23: DF(mo-logZ) | Y23: Zero(mo-logZ) | Z23: Forw(mo-logZ)
B24: 2012-04-03 | C24: CASH | D24: =NextWorkDay(B24) -> 2012-04-04 | E24: =B7 -> O/N | F24: =(G24+H24)/2 -> 1.5 | G24: =C7 -> 1.4 | H24: 1.6 | J24: =D24-B24 -> 1 | K24: =J24/360 -> 0.002777777778 | L24: =J24/365 -> 0.002739726027 | N24: =(D24-B24)/365 -> 0.002739726027 | O24: =1/(1+(F24/100)*K24) -> 0.9999583351 | P24: =-100*LN(O24)/((D24-$B$24)/365) -> 1.52080165 | Q24: =P24 -> 1.52080165 | R24: =O24 -> 0.9999583351 | S24: =-100*LN(R24)/((D24-$B$24)/365) -> 1.52080165 | T24: =Q24 -> 1.52080165 | U24: =R24 -> 0.9999583351 | V24: =-100*LN(U24)/((D24-$B$24)/365) -> 1.52080165 | W24: =T24 -> 1.52080165 | X24: 0.9999583351 | Y24: =-100*LN(X24)/((D24-$B$24)/365) -> 1.52080165 | Z24: =W24 -> 1.52080165
B25: =NextWorkDay(B24) -> 2012-04-04 | C25: CASH | D25: =NextWorkDay(B25) -> 2012-04-05 | E25: T/N | F25: 1.628 | G25: 1.628 | H25: 1.628 | J25: =D25-B25 -> 1 | K25: =J25/360 -> 0.002777777778 | L25: =J25/365 -> 0.002739726027 | M25: =DAYS360(D24,D25,0)/360 -> 0.002777777778 | N25: =(D25-B24)/365 -> 0.005479452055 | O25: =$O$24*(1/(1+(F25/100)*K25)) -> 0.9999131168 | P25: 1.58568772 | Q25: =forwardRate(N24,P24,N25,P25) -> 1.65057379 | R25: 0.9999131168 | S25: 1.58568772 | T25: =Q25 -> 1.65057379 | U25: 0.9999131168 | V25: =-100*LN(U25)/((D25-$B$24)/365) -> 1.58568772 | W25: 1.65057379 | X25: 0.9999131168 | Y25: =-100*LN(X25)/((D25-$B$24)/365) -> 1.58568772 | Z25: 1.65057379
B26: =NextWorkDay(B25) -> 2012-04-05 | C26: CASH | D26: =AddDays(B26,7) -> 2012-04-12 | E26: 1W | F26: 1.745 | G26: 1.745 | H26: 1.745 | J26: =D26-B26 -> 7 | K26: 0.01944444444 | L26: 0.01917808219 | M26: =DAYS360(D25,D26,0)/360 -> 0.01944444444 | N26: =(D26-B24)/365 -> 0.02465753425 | O26: =$O$25*(1/(1+(F26/100)*K26)) -> 0.9995739558 | P26: 1.728214178 | Q26: =forwardRate(N25,P25,N26,P26) -> 1.768936023 | R26: 0.9995739558 | S26: 1.728214178 | T26: =Q26 -> 1.768936023 | U26: 0.9995739558 | V26: 1.728214178 | W26: 1.768936023 | X26: 0.9995739558 | Y26: =V26 -> 1.728214178 | Z26: 1.768936023
B27: =$B$26 -> 2012-04-05 | C27: CASH | D27: =AddMonths(B27,1) -> 2012-05-07 | E27: 1M | F27: 1.99 | G27: 1.99 | H27: 1.99 | J27: 32 | K27: 0.08888888889 | L27: 0.08767123288 | M27: =DAYS360(D26,D27,0)/360 -> 0.06944444444 | N27: =(D27-B24)/365 -> 0.09315068493 | O27: =$O$25*(1/(1+(F27/100)*K27)) -> 0.9981475047 | P27: 1.990552455 | Q27: 2.084994235 | R27: 0.9981475047 | S27: 1.990552455 | T27: =Q27 -> 2.084994235 | U27: 0.9981475047 | V27: 1.990552455 | W27: 2.084994235 | X27: 0.9981475047 | Y27: 1.990552455 | Z27: 2.084994235
B28: =$B$26 -> 2012-04-05 | C28: CASH | D28: =AddMonths(B28,2) -> 2012-06-05 | E28: 2M | F28: 2.1 | G28: 2.1 | H28: 2.1 | J28: 61 | K28: 0.1694444444 | L28: 0.1671232877 | M28: =DAYS360(D27,D28,0)/360 -> 0.07777777778 | N28: =(D28-B24)/365 -> 0.1726027397 | O28: =$O$25*(1/(1+(F28/100)*K28)) -> 0.9963677083 | P28: 2.108254161 | Q28: 2.246249264 | R28: 0.9963677083 | S28: 2.108254161 | T28: =Q28 -> 2.246249264 | U28: 0.9963677083 | V28: 2.108254161 | W28: =T28 -> 2.246249264 | X28: =U28 -> 0.9963677083 | Y28: 2.108254161 | Z28: 2.246249264
B29: =$B$26 -> 2012-04-05 | C29: CASH | D29: =AddMonths(B29,3) -> 2012-07-05 | E29: 3M | F29: 2.255 | G29: 2.255 | H29: 2.255 | J29: 91 | K29: 0.2527777778 | L29: 0.2493150685 | M29: =DAYS360(D28,D29,0)/360 -> 0.08333333333 | N29: =(D29-B24)/365 -> 0.2547945205 | O29: =$O$25*(1/(1+(F29/100)*K29)) -> 0.9942457778 | P29: 2.264900185 | Q29: 2.593856837 | R29: 0.9942457778 | S29: 2.264900185 | T29: 2.593856837 | U29: 0.9942457778 | V29: 2.264900185 | W29: 2.593856837 | X29: 0.9942457778 | Y29: 2.264900185 | Z29: 2.593856837
B30: =D71 -> 2012-06-20 | C30: FRA | D30: =Next_IMMDate(E30,B24) -> 2012-09-19 | E30: jun-12 | F30: 2.13 | G30: =F7 -> 2.12 | H30: 2.14 | J30: =D30-B30 -> 91 | K30: 0.2527777778 | L30: 0.2493150685 | M30: =DAYS360(D71,D30,0)/360 -> 0.2472222222 | N30: =(D30-B24)/365 -> 0.4630136986 | O30: =(1/(1+(F30/100)*K30))*O71 -> 0.9900078473 | P30: 2.168922724 | Q30: 2.05147662 | R30: 0.9900078473 | S30: 2.168922724 | T30: 2.05147662 | U30: 0.9900078473 | V30: 2.168922724 | W30: 2.05147662 | X30: 0.9900078473 | Y30: 2.168922724 | Z30: 2.05147662
B31: =D30 -> 2012-09-19 | C31: FRA | D31: =Next_IMMDate(E31,B25) -> 2012-12-19 | E31: sep-12 | F31: 2.0175 | G31: 2.0075 | H31: 2.0275 | J31: =D31-B31 -> 91 | K31: =J31/360 -> 0.2527777778 | L31: =J31/365 -> 0.2493150685 | M31: =DAYS360(D30,D31,0)/360 -> 0.25 | N31: =(D31-B24)/365 -> 0.7123287671 | O31: =(1/(1+(F31/100)*K31))*O30 -> 0.9849846309 | P31: 2.123912693 | Q31: 2.040322634 | R31: 0.9849846309 | S31: 2.123912693 | T31: 2.040322634 | U31: 0.9849846309 | V31: 2.123912693 | W31: 2.040322634 | X31: 0.9849846309 | Y31: 2.123912693 | Z31: 2.040322634
B32: 2012-12-19 | C32: FRA | D32: =Next_IMMDate(E32,B26) -> 2013-03-20 | E32: dec-12 | F32: 2.02125 | G32: 2.01125 | H32: 2.03125 | J32: =D32-B32 -> 91 | K32: 0.2527777778 | L32: 0.2493150685 | M32: 0.2527777778 | N32: =(D32-B24)/365 -> 0.9616438356 | O32: 0.9799776596 | P32: 2.103221915 | Q32: 2.044105408 | R32: 0.9799776596 | S32: 2.103221915 | T32: 2.044105408 | U32: 0.9799776596 | V32: 2.103221915 | W32: 2.044105408 | X32: 0.9799776596 | Y32: 2.103221915 | Z32: 2.044105408
B33: 2013-03-20 | C33: FRA | D33: =Next_IMMDate(E33,B27) -> 2013-06-19 | E33: mar-13 | F33: 2.045 | G33: 2.035 | H33: 2.055 | J33: =D33-B33 -> 91 | K33: 0.2527777778 | L33: 0.2493150685 | M33: 0.2472222222 | N33: =(D33-B24)/365 -> 1.210958904 | O33: 0.9749379077 | P33: 2.09598314 | Q33: 2.068062149 | R33: 0.9749379077 | S33: 2.09598314 | T33: 2.068062149 | U33: 0.9749379077 | V33: 2.09598314 | W33: 2.068062149 | X33: 0.9749379077 | Y33: 2.09598314 | Z33: 2.068062149
B34: 2013-06-19 | C34: FRA | D34: 2013-09-18 | E34: jun-13 | F34: 2.0725 | G34: 2.0575 | H34: 2.0875 | J34: 91 | K34: 0.2527777778 | L34: 0.2493150685 | M34: 0.2472222222 | N34: =(D34-B24)/365 -> 1.460273973 | O34: 0.9698570019 | P34: 2.095951828 | Q34: 2.095799745 | R34: 0.9698570019 | S34: 2.095951828 | T34: 2.095799745 | U34: 0.9698570019 | V34: 2.095951828 | W34: 2.095799745 | X34: 0.9698570019 | Y34: 2.095951828 | Z34: 2.095799745
B35: 2013-09-18 | C35: FRA | D35: 2013-12-18 | E35: sep-13 | F35: 2.11375 | G35: 2.09875 | H35: 2.12875 | J35: 91 | K35: 0.2527777778 | L35: 0.2493150685 | M35: 0.25 | N35: =(D35-B24)/365 -> 1.709589041 | O35: 0.9647025093 | P35: 2.101996724 | Q35: 2.137402543 | R35: 0.9647025093 | S35: 2.101996724 | T35: 2.137402543 | U35: 0.9647025093 | V35: 2.101996724 | W35: 2.137402543 | X35: 0.9647025093 | Y35: 2.101996724 | Z35: 2.137402543
B36: 2013-12-18 | C36: FRA | D36: 2014-03-19 | E36: dec-13 | F36: 2.15875 | G36: 2.14375 | H36: 2.17375 | J36: 91 | K36: 0.2527777778 | L36: 0.2493150685 | M36: 0.2527777778 | N36: =(D36-B24)/365 -> 1.95890411 | O36: 0.959466852 | P36: 2.112278549 | Q36: 2.182782493 | R36: 0.959466852 | S36: 2.112278549 | T36: 2.182782493 | U36: 0.959466852 | V36: 2.112278549 | W36: 2.182782493 | X36: 0.959466852 | Y36: 2.112278549 | Z36: 2.182782493
B37: 2014-03-19 | C37: FRA | D37: 2014-06-18 | E37: mar-14 | F37: 2.21375 | G37: 2.19875 | H37: 2.22875 | J37: 91 | K37: 0.2527777778 | L37: 0.2493150685 | M37: 0.2472222222 | N37: =(D37-B24)/365 -> 2.208219178 | O37: 0.9541276794 | P37: 2.126499993 | Q37: 2.238239905 | R37: 0.9541276794 | S37: 2.126499993 | T37: 2.238239905 | U37: 0.9541276794 | V37: 2.126499993 | W37: 2.238239905 | X37: 0.9541276794 | Y37: 2.126499993 | Z37: 2.238239905
B38: 2014-06-18 | C38: FRA | D38: 2014-09-17 | E38: jun-14 | F38: 2.268333 | G38: 2.248333 | H38: 2.288333 | J38: 91 | K38: 0.2527777778 | L38: 0.2493150685 | M38: =DAYS360(D37,D38,0)/360 -> 0.2472222222 | N38: =(D38-B24)/365 -> 2.457534247 | O38: 0.9486880522 | P38: 2.143418615 | Q38: 2.293269268 | R38: 0.9486880522 | S38: 2.143418615 | T38: 2.293269268 | U38: 0.9486880522 | V38: 2.143418615 | W38: 2.293269268 | X38: 0.9486880522 | Y38: 2.143418615 | Z38: 2.293269268
B39: 2014-09-17 | C39: FRA | D39: 2014-12-17 | E39: sep-14 | F39: 2.326667 | G39: 2.306667 | H39: 2.346667 | J39: 91 | K39: 0.2527777778 | L39: 0.2493150685 | M39: 0.25 | N39: =(D39-B24)/365 -> 2.706849315 | O39: 0.9431411588 | P39: 2.162636686 | Q39: 2.352071962 | R39: 0.9431411588 | S39: 2.162636686 | T39: 2.352071962 | U39: 0.9431411588 | V39: 2.162636686 | W39: 2.352071962 | X39: 0.9431411588 | Y39: 2.162636686 | Z39: 2.352071962
B40: 2014-12-17 | C40: FRA | D40: 2015-03-18 | E40: dec-14 | F40: 2.381667 | G40: 2.361667 | H40: 2.401667 | J40: 91 | K40: 0.2527777778 | L40: 0.2493150685 | M40: =DAYS360(D39,D40,0)/360 -> 0.2527777778 | N40: =(D40-B24)/365 -> 2.956164384 | O40: 0.9374971215 | P40: 2.183288313 | Q40: 2.407505974 | R40: 0.9374971215 | S40: 2.183288313 | T40: 2.407505974 | U40: 0.9374971215 | V40: 2.183288313 | W40: 2.407505974 | X40: 0.9374971215 | Y40: 2.183288313 | Z40: 2.407505974
B41: 2015-03-18 | C41: FRA | D41: 2015-06-17 | E41: mar-15 | F41: 2.436667 | G41: 2.416667 | H41: 2.456667 | J41: 91 | K41: 0.2527777778 | L41: 0.2493150685 | M41: =DAYS360(D40,D41,0)/360 -> 0.2472222222 | N41: =(D41-B24)/365 -> 3.205479452 | O41: 0.9317580948 | P41: 2.205038403 | Q41: 2.462932325 | R41: 0.9317580948 | S41: 2.205038403 | T41: 2.462932325 | U41: 0.9317580948 | V41: 2.205038403 | W41: 2.462932325 | X41: 0.9317580948 | Y41: 2.205038403 | Z41: 2.462932325
B42: =$B$26 -> 2012-04-05 | C42: STIBOR 3M | D42: =PAddDate(E42,B42) -> 2016-04-05 | E42: =H7 -> 4Y | F42: 2.2875 | G42: =I7 -> 2.2625 | H42: 2.3125 | J42: 1461 | K42: 4.058333333 | L42: 4.002739726 | M42: =DAYS360(Y17,D42,0)/360 -> 0.9944444444 | N42: =(D42-B24)/365 -> 4.008219178 | O42: =(100*$O$25-F42*(AA15+AA16+AA17))/(100+F42) -> 0.9132861782 | P42: 2.262999983 | Q42: 2.494450663 | R42: 0.9132861782 | S42: 2.262999983 | T42: 2.494450663 | U42: 0.9132861782 | V42: 2.262999983 | W42: 2.494450663 | X42: 0.9132861782 | Y42: 2.262999983 | Z42: 2.494450663
B43: 2012-04-05 | C43: STIBOR 3M | D43: =PAddDate(E43,B43) -> 2017-04-05 | E43: 5Y | F43: 2.375 | G43: 2.35 | H43: 2.4 | J43: 1826 | K43: =DAYS360(B43,D43,0)/360 -> 5 | L43: 5.002739726 | M43: =DAYS360(D42,D43,0)/360 -> 1 | N43: =(D43-B24)/365 -> 5.008219178 | O43: =(100*$O$25-F43*(AA18)-F43*O42)/(100+F43) -> 0.8887385883 | P43: 2.355171248 | Q43: 2.724613877 | R43: 0.8887385883 | S43: 2.355171248 | T43: 2.724613877 | U43: 0.8887385883 | V43: 2.355171248 | W43: 2.724613877 | X43: 0.8887385883 | Y43: 2.355171248 | Z43: 2.724613877
B44: 2012-04-05 | C44: STIBOR 3M | D44: =PAddDate(E44,B44) -> 2018-04-05 | E44: 6Y | F44: 2.46 | G44: 2.435 | H44: 2.485 | J44: 2191 | K44: 6 | L44: 6.002739726 | M44: =DAYS360(D43,D44,0)/360 -> 1 | N44: =(D44-B24)/365 -> 6.008219178 | O44: =(100*$O$25-F44*(AA18)-F44*SUM(O42:O43))/(100+F44) -> 0.8635171876 | P44: 2.442345604 | Q44: 2.878933888 | R44: 0.8635171876 | S44: 2.442345604 | T44: 2.878933888 | U44: 0.8635171876 | V44: 2.442345604 | W44: 2.878933888 | X44: 0.8635171876 | Y44: 2.442345604 | Z44: 2.878933888
B45: 2012-04-05 | C45: STIBOR 3M | D45: =PAddDate(E45,B45) -> 2019-04-05 | E45: 7Y | F45: 2.53 | G45: 2.505 | H45: 2.555 | J45: 2556 | K45: 7 | L45: 7.002739726 | M45: 1 | N45: =(D45-B24)/365 -> 7.008219178 | O45: =(100*$O$25-F45*(AA18)-F45*(SUM(O42:O44)))/(100+F45) -> 0.8384238785 | P45: 2.514640029 | Q45: 2.949000777 | R45: 0.8384238785 | S45: 2.514640029 | T45: 2.949000777 | U45: 0.8384238785 | V45: 2.514640029 | W45: 2.949000777 | X45: 0.8384238785 | Y45: 2.514640029 | Z45: 2.949000777
B46: 2012-04-05 | C46: STIBOR 3M | D46: =PAddDate(E46,B46) -> 2020-04-06 | E46: 8Y | F46: 2.5825 | G46: 2.5575 | H46: 2.6075 | J46: 2923 | K46: 8.002777778 | L46: 8.008219178 | M46: 1.002777778 | N46: =(D46-B24)/365 -> 8.01369863 | O46: =(100*$O$25-F46*(AA18)-F46*(SUM(O42:O45)))/(100+F46) -> 0.8140499766 | P46: 2.567272966 | Q46: 2.934125975 | R46: 0.8140499766 | S46: 2.567272966 | T46: 2.934125975 | U46: 0.8140499766 | V46: 2.567272966 | W46: 2.934125975 | X46: 0.8140499766 | Y46: 2.567272966 | Z46: 2.934125975
B47: 2012-04-05 | C47: STIBOR 3M | D47: =PAddDate(E47,B47) -> 2021-04-06 | E47: 9Y | F47: 2.6225 | G47: 2.5975 | H47: 2.6475 | J47: 3288 | K47: 9.002777778 | L47: 9.008219178 | M47: 1 | N47: =(D47-B24)/365 -> 9.01369863 | O47: =(100*$O$25-F47*(AA18)-F47*(SUM(O42:O46)))/(100+F47) -> 0.7904418301 | P47: 2.60895356 | Q47: 2.942969273 | R47: 0.7904418301 | S47: 2.60895356 | T47: 2.942969273 | U47: 0.7904418301 | V47: 2.60895356 | W47: 2.942969273 | X47: 0.7904418301 | Y47: 2.60895356 | Z47: 2.942969273
B48: 2012-04-05 | C48: STIBOR 3M | D48: 2022-04-05 | E48: 10Y | F48: 2.66 | G48: 2.635 | H48: 2.685 | J48: 3652 | K48: 10 | L48: 10.00547945 | M48: 0.9972222222 | N48: =(D48-B24)/365 -> 10.0109589 | O48: =(100*$O$25-F48*(AA18)-F48*(SUM(O42:O47)))/(100+F48) -> 0.7670431818 | P48: 2.649218542 | Q48: 3.013152039 | R48: 0.7670431818 | S48: 2.649218542 | T48: 3.013152039 | U48: 0.7670431818 | V48: 2.649218542 | W48: 3.013152039 | X48: 0.7670431818 | Y48: 2.649218542 | Z48: 3.013152039
B49: 2012-04-05 | C49: STIBOR 3M | D49: 2023-04-05 | E49: 11Y | J49: 4017 | K49: 11 | L49: 11.00547945 | M49: 1 | N49: =(D49-B24)/365 -> 11.0109589 | O49: =(O48+O50)/2 -> 0.7444740742 | P49: 2.679850621 | Q49: =forwardRate(N48,P48,N49,P49) -> 2.986507098 | R49: =EXP(-(S49/100)*(D49-$B$24)/365) -> 0.7441179175 | S49: =cubic_ipolate(D49,R7:R18,S7:S18) -> 2.684196427 | T49: =forwardRate(N48,S48,N49,S49) -> 3.034358595 | U49: =EXP(-(V49/100)*(D49-$B$24)/365) -> 0.7443998668 | V49: =monotone_cubic(D49,R7:R18,S7:S18) -> 2.680755925 | W49: =forwardRate(N48,V48,N49,V49) -> 2.996475366 | X49: =EXP(-(Y49/100)*(D49-$B$24)/365) -> 0.7444151269 | Y49: =monotone_log(D49,R7:R18,U7:U18) -> 2.680569749 | Z49: =forwardRate(N48,Y48,N49,Y49) -> 2.994425394
B50: 2012-04-05 | C50: STIBOR 3M | D50: 2024-04-05 | E50: =H14 -> 12Y | F50: 2.72 | G50: =I14 -> 2.69 | H50: =J14 -> 2.75 | J50: 4383 | K50: 12 | L50: 12.00821918 | M50: 1 | N50: =(D50-B24)/365 -> 12.01369863 | O50: =(1*$O$25-(F50/100)*(AA18+O48/2+SUM(O42:O48)))/(1+3*F50/200) -> 0.7219049666 | P50: 2.712418415 | Q50: 3.070041268 | R50: =O50 -> 0.7219049666 | S50: =-100*LN(R50)/((D50-$B$24)/365) -> 2.712418415 | T50: 3.022320513 | U50: =R50 -> 0.7219049666 | V50: =-100*LN(U50)/((D50-$B$24)/365) -> 2.712418415 | W50: 3.060100236 | X50: =U50 -> 0.7219049666 | Y50: =V50 -> 2.712418415 | Z50: 3.062144607
B51: 2012-04-05 | C51: STIBOR 3M | D51: 2025-04-07 | E51: 13Y | J51: 4750 | K51: 13.00555556 | L51: 13.01369863 | M51: 1.005555556 | N51: =(D51-B24)/365 -> 13.01917808 | O51: =O50+(D51-D50)*(O53-O50)/(D53-D50) -> 0.700647149 | P51: 2.732514067 | Q51: 2.972621519 | R51: =EXP(-(S51/100)*(D51-$B$24)/365) -> 0.6996197824 | S51: =cubic_ipolate(D51,R7:R18,S7:S18) -> 2.743785031 | T51: 3.118560549 | U51: =EXP(-(V51/100)*(D51-$B$24)/365) -> 0.7007964216 | V51: =monotone_cubic(D51,R7:R18,S7:S18) -> 2.730877811 | W51: 2.95143491 | X51: =EXP(-(Y51/100)*(D51-$B$24)/365) -> 0.7008123419 | Y51: =monotone_log(D51,R7:R18,U7:U18) -> 2.730703322 | Z51: 2.949175577
B52: 2012-04-05 | C52: STIBOR 3M | D52: 2026-04-07 | E52: 14Y | J52: 5115 | K52: =DAYS360(B52,D52,0)/360 -> 14.00555556 | L52: 14.01369863 | M52: 1 | N52: =(D52-B24)/365 -> 14.01917808 | O52: =O50+(D52-D50)*(O53-O50)/(D53-D50) -> 0.6795051778 | P52: 2.756156054 | Q52: 3.0639553 | R52: =EXP(-(S52/100)*(D52-$B$24)/365) -> 0.6783808582 | S52: =cubic_ipolate(D52,R7:R18,S7:S18) -> 2.767968342 | T52: 3.082815162 | U52: =EXP(-(V52/100)*(D52-$B$24)/365) -> 0.678679244 | V52: =monotone_cubic(D52,R7:R18,S7:S18) -> 2.764831544 | W52: 3.206881229 | X52: =EXP(-(Y52/100)*(D52-$B$24)/365) -> 0.6786957116 | Y52: =monotone_log(D52,R7:R18,U7:U18) -> 2.764658467 | Z52: 3.20672655
B53: 2012-04-05 | C53: STIBOR 3M | D53: 2027-04-05 | E53: =H15 -> 15Y | F53: 2.785 | G53: =I15 -> 2.755 | H53: =J15 -> 2.815 | J53: 5478 | K53: 15 | L53: 15.00821918 | M53: 0.9944444444 | N53: =(D53-B24)/365 -> 15.01369863 | O53: =(1*$O$25-(F53/100)*(AA18+O50+SUM(O42:O50)))/(1+2*F53/100) -> 0.6584790529 | P53: 2.782942291 | Q53: 3.160532295 | R53: =O53 -> 0.6584790529 | S53: =-100*LN(R53)/((D53-$B$24)/365) -> 2.782942291 | T53: 2.994021347 | U53: =R53 -> 0.6584790529 | V53: =-100*LN(U53)/((D53-$B$24)/365) -> 2.782942291 | W53: 3.038238964 | X53: =U53 -> 0.6584790529 | Y53: =V53 -> 2.782942291 | Z53: 3.040678725
B54: 2012-04-05 | C54: STIBOR 3M | D54: 2028-04-05 | E54: 16Y | J54: 5844 | K54: 16 | L54: 16.0109589 | M54: 1 | N54: =(D54-B24)/365 -> 16.01643836 | O54: =$O$53+(D54-$D$53)*($O$58-$O$53)/($D$58-$D$53) -> 0.6420938425 | P54: 2.766038266 | Q54: 2.512939761 | R54: =EXP(-(S54/100)*(D54-$B$24)/365) -> 0.6394664409 | S54: =cubic_ipolate(D54,R7:R18,S7:S18) -> 2.79163898 | T54: 2.921851712 | U54: =EXP(-(V54/100)*(D54-$B$24)/365) -> 0.6407141644 | V54: =monotone_cubic(D54,R7:R18,S7:S18) -> 2.7794684 | W54: 2.727454954 | X54: =EXP(-(Y54/100)*(D54-$B$24)/365) -> 0.6407160895 | Y54: =monotone_log(D54,R7:R18,U7:U18) -> 2.779449641 | Z54: 2.727155319
B55: 2012-04-05 | C55: STIBOR 3M | D55: 2029-04-05 | E55: 17Y | J55: 6209 | K55: 17 | L55: 17.0109589 | M55: 1 | N55: =(D55-B24)/365 -> 17.01643836 | O55: =$O$53+(D55-$D$53)*($O$58-$O$53)/($D$58-$D$53) -> 0.6257534004 | P55: 2.754976716 | Q55: =P54+(P55-P51)*(2*K55-K54)/(D55-D54) -> 2.767146013 | R55: =EXP(-(S55/100)*(D55-$B$24)/365) -> 0.621948452 | S55: =cubic_ipolate(D55,R7:R18,S7:S18) -> 2.790819409 | T55: 2.77769279 | U55: =EXP(-(V55/100)*(D55-$B$24)/365) -> 0.6240267462 | V55: =monotone_cubic(D55,R7:R18,S7:S18) -> 2.771214746 | W55: 2.63902061 | X55: =EXP(-(Y55/100)*(D55-$B$24)/365) -> 0.6240316054 | Y55: =monotone_log(D55,R7:R18,U7:U18) -> 2.771168986 | Z55: 2.638542383
B56: 2012-04-05 | C56: STIBOR 3M | D56: 2030-04-05 | E56: 18Y | J56: 6574 | K56: 18 | L56: 18.0109589 | M56: 1 | N56: =(D56-B24)/365 -> 18.01643836 | O56: =$O$53+(D56-$D$53)*($O$58-$O$53)/($D$58-$D$53) -> 0.6094129583 | P56: 2.748929277 | Q56: =forwardRate(N55,P55,N56,P56) -> 2.646023405 | R56: =EXP(-(S56/100)*(D56-$B$24)/365) -> 0.6057554537 | S56: =cubic_ipolate(D56,R7:R18,S7:S18) -> 2.782341916 | T56: 2.638085182 | U56: =EXP(-(V56/100)*(D56-$B$24)/365) -> 0.6080488188 | V56: =monotone_cubic(D56,R7:R18,S7:S18) -> 2.761367681 | W56: 2.593805709 | X56: =EXP(-(Y56/100)*(D56-$B$24)/365) -> 0.6080538261 | Y56: =monotone_log(D56,R7:R18,U7:U18) -> 2.761321974 | Z56: 2.5937609
B57: 2012-04-05 | C57: STIBOR 3M | D57: 2031-04-07 | E57: 19Y | J57: 6941 | K57: 19.00555556 | L57: 19.01643836 | M57: 1.005555556 | N57: =(D57-B24)/365 -> 19.02191781 | O57: =$O$53+(D57-$D$53)*($O$58-$O$53)/($D$58-$D$53) -> 0.5929829796 | P57: 2.747302285 | Q57: 2.718149438 | R57: =EXP(-(S57/100)*(D57-$B$24)/365) -> 0.5906602084 | S57: =cubic_ipolate(D57,R7:R18,S7:S18) -> 2.767935261 | T57: 2.509793135 | U57: =EXP(-(V57/100)*(D57-$B$24)/365) -> 0.5923317862 | V57: =monotone_cubic(D57,R7:R18,S7:S18) -> 2.753078615 | W57: 2.604553004 | X57: =EXP(-(Y57/100)*(D57-$B$24)/365) -> 0.5923338747 | Y57: =monotone_log(D57,R7:R18,U7:U18) -> 2.75306008 | Z57: 2.60502135
B58: 2012-04-05 | C58: STIBOR 3M | D58: 2032-04-05 | E58: =H16 -> 20Y | F58: 2.765 | G58: =I16 -> 2.725 | H58: =J16 -> 2.805 | J58: 7305 | K58: 20 | L58: 20.01369863 | M58: 0.9944444444 | N58: =(D58-B24)/365 -> 20.01917808 | O58: =(1*$O$25-(F58/100)*(AA18+2*O53+SUM(O42:O53)))/(1+3*F58/100) -> 0.5766873058 | P58: 2.749638812 | Q58: 2.794206133 | R58: =O58 -> 0.5766873058 | S58: =-100*LN(R58)/((D58-$B$24)/365) -> 2.749638812 | T58: 2.40064912 | U58: =R58 -> 0.5766873058 | V58: =-100*LN(U58)/((D58-$B$24)/365) -> 2.749638812 | W58: 2.684027404 | X58: =U58 -> 0.5766873058 | Y58: =V58 -> 2.749638812 | Z58: 2.684380952
B59: 2012-04-05 | C59: STIBOR 3M | D59: 2033-04-05 | E59: 21Y | J59: 7670 | K59: 21 | L59: 21.01369863 | M59: 1 | N59: =(D59-B24)/365 -> 21.01917808 | O59: =$O$58+(D59-$D$58)*($O$63-$O$58)/($D$63-$D$58) -> 0.5636467236 | P59: 2.727640435 | Q59: 2.287251 | R59: =EXP(-(S59/100)*(D59-$B$24)/365) -> 0.56246612 | S59: =cubic_ipolate(D59,R7:R18,S7:S18) -> 2.737615979 | T59: 2.496928742 | U59: =EXP(-(V59/100)*(D59-$B$24)/365) -> 0.5619029314 | V59: =monotone_cubic(D59,R7:R18,S7:S18) -> 2.742382037 | W59: 2.597107358 | X59: =EXP(-(Y57/100)*(D59-$B$24)/365) -> 0.5606431899 | Y59: =monotone_log(D59,R7:R18,U7:U18) -> 2.742297921 | Z59: 2.595339311
B60: 2012-04-05 | C60: STIBOR 3M | D60: 2034-04-05 | E60: 22Y | J60: 8035 | K60: 22 | L60: 22.01369863 | M60: 1 | N60: =(D60-B24)/365 -> 22.01917808 | O60: =$O$58+(D60-$D$58)*($O$63-$O$58)/($D$63-$D$58) -> 0.5506061413 | P60: 2.710071785 | Q60: 2.340793205 | R60: =EXP(-(S60/100)*(D60-$B$24)/365) -> 0.548919001 | S60: =cubic_ipolate(D60,R7:R18,S7:S18) -> 2.724008976 | T60: 2.438000969 | U60: =EXP(-(V60/100)*(D60-$B$24)/365) -> 0.5487907172 | V60: =monotone_cubic(D60,R7:R18,S7:S18) -> 2.72507046 | W60: 2.361195347 | X60: =EXP(-(Y60/100)*(D60-$B$24)/365) -> 0.5488155817 | Y60: =monotone_log(D60,R7:R18,U7:U18) -> 2.7248647 | Z60: 2.358432719
B61: 2012-04-05 | C61: STIBOR 3M | D61: 2035-04-05 | E61: 23Y | J61: 8400 | K61: 23 | L61: 23.01369863 | M61: 1 | N61: =(D61-B24)/365 -> 23.01917808 | O61: =$O$58+(D61-$D$58)*($O$63-$O$58)/($D$63-$D$58) -> 0.5375655591 | P61: 2.696467067 | Q61: 2.396902356 | R61: =EXP(-(S61/100)*(D61-$B$24)/365) -> 0.5359642731 | S61: =cubic_ipolate(D61,R7:R18,S7:S18) -> 2.709426777 | T61: 2.38833873 | U61: =EXP(-(V61/100)*(D61-$B$24)/365) -> 0.5365861798 | V61: =monotone_cubic(D61,R7:R18,S7:S18) -> 2.704388898 | W61: 2.248997899 | X61: =EXP(-(Y61/100)*(D61-$B$24)/365) -> 0.5366116087 | Y61: =monotone_log(D61,R7:R18,U7:U18) -> 2.70418303 | Z61: 2.248789667
B62: 2012-04-05 | C62: STIBOR 3M | D62: 2036-04-07 | E62: 24Y | J62: 8768 | K62: 24.00555556 | L62: 24.02191781 | M62: 1.005555556 | N62: =(D62-B24)/365 -> 24.02739726 | O62: =$O$58+(D62-$D$58)*($O$63-$O$58)/($D$63-$D$58) -> 0.524417794 | P62: 2.686377507 | Q62: 2.456017511 | R62: =EXP(-(S62/100)*(D62-$B$24)/365) -> 0.5234134781 | S62: =cubic_ipolate(D62,R7:R18,S7:S18) -> 2.694355661 | T62: 2.350259144 | U62: =EXP(-(V62/100)*(D62-$B$24)/365) -> 0.5243504877 | V62: =monotone_cubic(D62,R7:R18,S7:S18) -> 2.686911702 | W62: 2.287880713 | X62: =EXP(-(Y62/100)*(D62-$B$24)/365) -> 0.5243610134 | Y62: =monotone_log(D62,R7:R18,U7:U18) -> 2.686828157 | Z62: 2.29059
B63: 2012-04-05 | C63: STIBOR 3M | D63: 2037-04-07 | E63: =H17 -> 25Y | F63: 2.715 | G63: =I17 -> 2.675 | H63: =J17 -> 2.755 | J63: 9133 | K63: 25.00555556 | L63: 25.02191781 | M63: 1 | N63: =(D63-B24)/365 -> 25.02739726 | O63: =(1*$O$25-(F63/100)*(AA18+2*O58+SUM(O42:O58)))/(1+3*F63/100) -> 0.5113772118 | P63: 2.679654503 | Q63: 2.518118205 | R63: =O63 -> 0.5113772118 | S63: =-100*LN(R63)/((D63-$B$24)/365) -> 2.679654503 | T63: 2.32642394 | U63: =R63 -> 0.5113772118 | V63: =-100*LN(U63)/((D63-$B$24)/365) -> 2.679654503 | W63: 2.505282906 | X63: =U63 -> 0.5113772118 | Y63: =V63 -> 2.679654503 | Z63: 2.507290259
B64: 2012-04-05 | C64: STIBOR 3M | D64: 2038-04-05 | E64: 26Y | J64: 9496 | K64: 26 | L64: 26.01643836 | M64: 0.9944444444 | N64: =(D64-B24)/365 -> 26.02191781 | O64: =$O$63+(D64-$D$63)*($O$68-$O$63)/($D$68-$D$63) -> 0.5001205576 | P64: 2.662778737 | Q64: 2.238095218 | R64: =EXP(-(S64/100)*(D64-$B$24)/365) -> 0.5001871995 | S64: =cubic_ipolate(D64,R7:R18,S7:S18) -> 2.662266696 | T64: 2.224697517 | U64: =EXP(-(V64/100)*(D64-$B$24)/365) -> 0.4986703699 | V64: =monotone_cubic(D64,R7:R18,S7:S18) -> 2.673938132 | W64: 2.530084007 | X64: =EXP(-(Y64/100)*(D64-$B$24)/365) -> 0.498677369 | Y64: =monotone_log(D64,R7:R18,U7:U18) -> 2.673884195 | Z64: 2.528672732
B65: 2012-04-05 | C65: STIBOR 3M | D65: 2039-04-05 | E65: 27Y | J65: 9861 | K65: 27 | L65: 27.01643836 | M65: 1 | N65: =(D65-B24)/365 -> 27.02191781 | O65: =$O$63+(D65-$D$63)*($O$68-$O$63)/($D$68-$D$63) -> 0.4888018833 | P65: 2.648953429 | Q65: 2.289192381 | R65: =EXP(-(S65/100)*(D65-$B$24)/365) -> 0.4890877604 | S65: =cubic_ipolate(D65,R7:R18,S7:S18) -> 2.646789697 | T65: 2.244048501 | U65: =EXP(-(V65/100)*(D65-$B$24)/365) -> 0.4873193336 | V65: =monotone_cubic(D65,R7:R18,S7:S18) -> 2.66019481 | W65: 2.302567209 | X65: =EXP(-(Y65/100)*(D65-$B$24)/365) -> 0.4873368258 | Y65: =monotone_log(D65,R7:R18,U7:U18) -> 2.660061976 | Z65: 2.300381326
B66: 2012-04-05 | C66: STIBOR 3M | D66: 2040-04-05 | E66: 28Y | J66: 10227 | K66: 28 | L66: 28.01917808 | M66: 1 | N66: =(D66-B24)/365 -> 28.02465753 | O66: =$O$63+(D66-$D$63)*($O$68-$O$63)/($D$68-$D$63) -> 0.4774521989 | P66: 2.638002731 | Q66: 2.342902369 | R66: =EXP(-(S66/100)*(D66-$B$24)/365) -> 0.4779272666 | S66: =cubic_ipolate(D66,R7:R18,S7:S18) -> 2.634454031 | T66: 2.302031412 | U66: =EXP(-(V66/100)*(D66-$B$24)/365) -> 0.4766901436 | V66: =monotone_cubic(D66,R7:R18,S7:S18) -> 2.643702576 | W66: 2.199268423 | X66: =EXP(-(Y66/100)*(D66-$B$24)/365) -> 0.476707943 | Y66: =monotone_log(D66,R7:R18,U7:U18) -> 2.643569341 | Z66: 2.199124362
B67: 2012-04-05 | C67: STIBOR 3M | D67: 2041-04-05 | E67: 29Y | J67: 10592 | K67: 29 | L67: 29.01917808 | M67: 1 | N67: =(D67-B24)/365 -> 29.02465753 | O67: =$O$63+(D67-$D$63)*($O$68-$O$63)/($D$68-$D$63) -> 0.4661335246 | P67: 2.629774878 | Q67: 2.399192134 | R67: =EXP(-(S67/100)*(D67-$B$24)/365) -> 0.466578243 | S67: =cubic_ipolate(D67,R7:R18,S7:S18) -> 2.626489385 | T67: 2.403282924 | U67: =EXP(-(V67/100)*(D67-$B$24)/365) -> 0.4661185124 | V67: =monotone_cubic(D67,R7:R18,S7:S18) -> 2.629885841 | W67: 2.242676558 | X67: =EXP(-(Y67/100)*(D67-$B$24)/365) -> 0.4661259318 | Y67: =monotone_log(D67,R7:R18,U7:U18) -> 2.629831 | Z67: 2.244818702
B68: 2012-04-05 | C68: STIBOR 3M | D68: 2042-04-08 | E68: =H18 -> 30Y | F68: 2.675 | G68: =I18 -> 2.625 | H68: =J18 -> 2.725 | J68: 10960 | K68: 30.00833333 | L68: 30.02739726 | M68: 1.008333333 | N68: =(D68-B24)/365 -> 30.03287671 | O68: =(1*$O$25-(F68/100)*(AA18+2*O63+SUM(O42:O63)))/(1+3*F68/100) -> 0.4547218201 | P68: 2.624022464 | Q68: 2.458421692 | R68: =O68 -> 0.4547218201 | S68: =-100*LN(R68)/((D68-$B$24)/365) -> 2.624022464 | T68: 2.55300461 | U68: =R68 -> 0.4547218201 | V68: =-100*LN(U68)/((D68-$B$24)/365) -> 2.624022464 | W68: 2.455227307 | X68: =U68 -> 0.4547218201 | Y68: =V68 -> 2.624022464 | Z68: 2.456806067
B71: =$B$26 -> 2012-04-05 | C71: STUB | D71: =IMMDate(E7,B24) -> 2012-06-20 | J71: =D71-B71 -> 76 | K71: =J71/360 -> 0.2111111111 | L71: =J71/365 -> 0.2082191781 | M71: =(D71-B71)/360 -> 0.2111111111 | O71: =EXP(-(P71/100)*(D71-$B$24)/365) -> 0.9953382145 | P71: =IPOLr(D71,D24:D29,P24:P29,1) -> 2.186577173

Sheet Graphics
